{"text_format":"1","workbook":"xlsx","n_sheets":3,"sheets":["Inkoop","Betalingen","Inkoop (2)"],"not_rendered":{"charts":0,"images":18,"macros":1,"external_links":0,"defined_names":10,"comments":0,"pivot_tables":0},"unopened":[],"bounds":{"document_bytes":16777216,"sheet_cells":100000,"rows_first":2000,"rows_last":500,"rows_between":2000,"halvings":0,"cell_chars":16384,"cell_head_chars":4096},"cells_cut":0,"cells_raw":0,"read":"whole","date_system":"1900"}

{"sheet":"Inkoop","index":0,"n_rows":241,"n_cols":13,"rows_kept":241,"cut":false,"hidden":false,"merged":[]}
[null,null,null,null,null,{"$f":"SUBTOTAL(9,LIJST_IN_BEDRAG_EXCL)","v":200.49},null,null,null,{"$f":"SUBTOTAL(9,LIJST_IN_BTWBEDRAG)","v":34.750799999999998},{"$f":"SUBTOTAL(9,LIJST_IN_BEDRAG_INCL)","v":235.24079999999998}]
[null,"DATUM BOEKING","RELATIE","OMSCHRIJVING","CATEGORIE","BEDRAG  EXCL. BTW","BTW-TARIEF","STATUS","DATUM BETAALD","BTW BEDRAG","BEDRAG INCL BTW","JAAR ","MAAND"]
[null,"2022-01-01","HN",null,"4315: TELEFOON & FAX",0.01,0,"Openstaand",null,{"$f":"+F3*G3","v":0},{"$f":"+F3+J3","v":0.01},2021,1]
[null,"2022-01-25","MP",288,null,25,0,"Betaald","2022-03-04",0,25,2022]
[null,"2022-03-01","HN",2021,null,10,null,"Betaald","2022-03-01",0,10,2022,{"$f":"IF(B5=\"\",\"\",MONTH(B5))","v":3}]
[null,"2022-03-04","A",255,null,165.48,0.21,"Openstaand",null,34.750799999999998,200.23079999999999,2022,3]
[null,null,null,null,null,null,null,{"$f":"IF(B7<>\"\",\"Openstaand\",\"\")","v":""},null,0,0,{"$f":"IF(B7=\"\",\"\",YEAR(B7))","v":""},""]
[null,null,null,null,null,null,null,"",null,0,0,"",""]
[null,null,null,null,null,null,null,"",null,0,0,"",""]
[null,null,null,null,null,null,null,"",null,0,0,"",""]
[null,null,null,null,null,null,null,"",null,0,0,"",""]
[null,null,null,null,null,null,null,"",null,0,0,"",""]
[null,null,null,null,null,null,null,"",null,0,0,"",""]
[null,null,null,null,null,null,null,"",null,0,0,"",""]
[null,null,null,null,null,null,null,"",null,0,0,"",""]
[null,null,null,null,null,null,null,"",null,0,0,"",""]
[null,null,null,null,null,null,null,"",null,0,0,"",""]
[null,null,null,null,null,null,null,"",null,0,0,"",""]
[null,null,null,null,null,null,null,"",null,0,0,"",""]
[null,null,null,null,null,null,null,"",null,0,0,"",""]
[null,null,null,null,null,null,null,"",null,0,0,"",""]
[null,null,null,null,null,null,null,"",null,0,0,"",""]
[null,null,null,null,null,null,null,"",null,0,0,"",""]
[null,null,null,null,null,null,null,"",null,0,0,"",""]
[null,null,null,null,null,null,null,"",null,0,0,"",""]
[null,null,null,null,null,null,null,"",null,0,0,"",""]
[null,null,null,null,null,null,null,"",null,0,0,"",""]
[null,null,null,null,null,null,null,"",null,0,0,"",""]
[null,null,null,null,null,null,null,"",null,0,0,"",""]
[null,null,null,null,null,null,null,"",null,0,0,"",""]
[null,null,null,null,null,null,null,"",null,0,0,"",""]
[null,null,null,null,null,null,null,"",null,0,0,"",""]
[null,null,null,null,null,null,null,"",null,0,0,"",""]
[null,null,null,null,null,null,null,"",null,0,0,"",""]
[null,null,null,null,null,null,null,"",null,0,0,"",""]
[null,null,null,null,null,null,null,"",null,0,0,"",""]
[null,null,null,null,null,null,null,"",null,0,0,"",{"$f":"IF(B37=\"\",\"\",MONTH(B37))","v":""}]
[null,null,null,null,null,null,null,"",null,0,0,"",""]
[null,null,null,null,null,null,null,"",null,0,0,{"$f":"IF(B39=\"\",\"\",YEAR(B39))","v":""},""]
[null,null,null,null,null,null,null,"",null,0,0,"",""]
[null,null,null,null,null,null,null,"",null,0,0,"",""]
[null,null,null,null,null,null,null,"",null,0,0,"",""]
[null,null,null,null,null,null,null,"",null,0,0,"",""]
[null,null,null,null,null,null,null,"",null,0,0,"",""]
[null,null,null,null,null,null,null,"",null,0,0,"",""]
[null,null,null,null,null,null,null,"",null,0,0,"",""]
[null,null,null,null,null,null,null,"",null,0,0,"",""]
[null,null,null,null,null,null,null,"",null,0,0,"",""]
[null,null,null,null,null,null,null,"",null,0,0,"",""]
[null,null,null,null,null,null,null,"",null,0,0,"",""]
[null,null,null,null,null,null,null,"",null,0,0,"",""]
[null,null,null,null,null,null,null,"",null,0,0,"",""]
[null,null,null,null,null,null,null,"",null,0,0,"",""]
[null,null,null,null,null,null,null,"",null,0,0,"",""]
[null,null,null,null,null,null,null,"",null,0,0,"",""]
[null,null,null,null,null,null,null,"",null,0,0,"",""]
[null,null,null,null,null,null,null,"",null,0,0,"",""]
[null,null,null,null,null,null,null,"",null,0,0,"",""]
[null,null,null,null,null,null,null,"",null,0,0,"",""]
[null,null,null,null,null,null,null,"",null,0,0,"",""]
[null,null,null,null,null,null,null,"",null,0,0,"",""]
[null,null,null,null,null,null,null,"",null,0,0,"",""]
[null,null,null,null,null,null,null,"",null,0,0,"",""]
[null,null,null,null,null,null,null,"",null,0,0,"",""]
[null,null,null,null,null,null,null,"",null,0,0,"",""]
[null,null,null,null,null,null,null,"",null,0,0,"",""]
[null,null,null,null,null,null,null,{"$f":"IF(B67<>\"\",\"Openstaand\",\"\")","v":""},null,{"$f":"+F67*G67","v":0},{"$f":"+F67+J67","v":0},"",""]
[null,null,null,null,null,null,null,"",null,0,0,"",""]
[null,null,null,null,null,null,null,"",null,0,0,"",{"$f":"IF(B69=\"\",\"\",MONTH(B69))","v":""}]
[null,null,null,null,null,null,null,"",null,0,0,"",""]
[null,null,null,null,null,null,null,"",null,0,0,{"$f":"IF(B71=\"\",\"\",YEAR(B71))","v":""},""]
[null,null,null,null,null,null,null,"",null,0,0,"",""]
[null,null,null,null,null,null,null,"",null,0,0,"",""]
[null,null,null,null,null,null,null,"",null,0,0,"",""]
[null,null,null,null,null,null,null,"",null,0,0,"",""]
[null,null,null,null,null,null,null,"",null,0,0,"",""]
[null,null,null,null,null,null,null,"",null,0,0,"",""]
[null,null,null,null,null,null,null,"",null,0,0,"",""]
[null,null,null,null,null,null,null,"",null,0,0,"",""]
[null,null,null,null,null,null,null,"",null,0,0,"",""]
[null,null,null,null,null,null,null,"",null,0,0,"",""]
[null,null,null,null,null,null,null,"",null,0,0,"",""]
[null,null,null,null,null,null,null,"",null,0,0,"",""]
[null,null,null,null,null,null,null,"",null,0,0,"",""]
[null,null,null,null,null,null,null,"",null,0,0,"",""]
[null,null,null,null,null,null,null,"",null,0,0,"",""]
[null,null,null,null,null,null,null,"",null,0,0,"",""]
[null,null,null,null,null,null,null,"",null,0,0,"",""]
[null,null,null,null,null,null,null,"",null,0,0,"",""]
[null,null,null,null,null,null,null,"",null,0,0,"",""]
[null,null,null,null,null,null,null,"",null,0,0,"",""]
[null,null,null,null,null,null,null,"",null,0,0,"",""]
[null,null,null,null,null,null,null,"",null,0,0,"",""]
[null,null,null,null,null,null,null,"",null,0,0,"",""]
[null,null,null,null,null,null,null,"",null,0,0,"",""]
[null,null,null,null,null,null,null,"",null,0,0,"",""]
[null,null,null,null,null,null,null,"",null,0,0,"",""]
[null,null,null,null,null,null,null,"",null,0,0,"",""]
[null,null,null,null,null,null,null,"",null,0,0,"",""]
[null,null,null,null,null,null,null,"",null,0,0,"",""]
[null,null,null,null,null,null,null,"",null,0,0,"",{"$f":"IF(B101=\"\",\"\",MONTH(B101))","v":""}]
[null,null,null,null,null,null,null,"",null,0,0,"",""]
[null,null,null,null,null,null,null,"",null,0,0,{"$f":"IF(B103=\"\",\"\",YEAR(B103))","v":""},""]
[null,null,null,null,null,null,null,"",null,0,0,"",""]
[null,null,null,null,null,null,null,"",null,0,0,"",""]
[null,null,null,null,null,null,null,"",null,0,0,"",""]
[null,null,null,null,null,null,null,"",null,0,0,"",""]
[null,null,null,null,null,null,null,"",null,0,0,"",""]
[null,null,null,null,null,null,null,"",null,0,0,"",""]
[null,null,null,null,null,null,null,"",null,0,0,"",""]
[null,null,null,null,null,null,null,"",null,0,0,"",""]
[null,null,null,null,null,null,null,"",null,0,0,"",""]
[null,null,null,null,null,null,null,"",null,0,0,"",""]
[null,null,null,null,null,null,null,"",null,0,0,"",""]
[null,null,null,null,null,null,null,"",null,0,0,"",""]
[null,null,null,null,null,null,null,"",null,0,0,"",""]
[null,null,null,null,null,null,null,"",null,0,0,"",""]
[null,null,null,null,null,null,null,"",null,0,0,"",""]
[null,null,null,null,null,null,null,"",null,0,0,"",""]
[null,null,null,null,null,null,null,"",null,0,0,"",""]
[null,null,null,null,null,null,null,"",null,0,0,"",""]
[null,null,null,null,null,null,null,"",null,0,0,"",""]
[null,null,null,null,null,null,null,"",null,0,0,"",""]
[null,null,null,null,null,null,null,"",null,0,0,"",""]
[null,null,null,null,null,null,null,"",null,0,0,"",""]
[null,null,null,null,null,null,null,"",null,0,0,"",""]
[null,null,null,null,null,null,null,"",null,0,0,"",""]
[null,null,null,null,null,null,null,"",null,0,0,"",""]
[null,null,null,null,null,null,null,"",null,0,0,"",""]
[null,null,null,null,null,null,null,"",null,0,0,"",""]
[null,null,null,null,null,null,null,{"$f":"IF(B131<>\"\",\"Openstaand\",\"\")","v":""},null,{"$f":"+F131*G131","v":0},{"$f":"+F131+J131","v":0},"",""]
[null,null,null,null,null,null,null,"",null,0,0,"",""]
[null,null,null,null,null,null,null,"",null,0,0,"",{"$f":"IF(B133=\"\",\"\",MONTH(B133))","v":""}]
[null,null,null,null,null,null,null,"",null,0,0,"",""]
[null,null,null,null,null,null,null,"",null,0,0,{"$f":"IF(B135=\"\",\"\",YEAR(B135))","v":""},""]
[null,null,null,null,null,null,null,"",null,0,0,"",""]
[null,null,null,null,null,null,null,"",null,0,0,"",""]
[null,null,null,null,null,null,null,"",null,0,0,"",""]
[null,null,null,null,null,null,null,"",null,0,0,"",""]
[null,null,null,null,null,null,null,"",null,0,0,"",""]
[null,null,null,null,null,null,null,"",null,0,0,"",""]
[null,null,null,null,null,null,null,"",null,0,0,"",""]
[null,null,null,null,null,null,null,"",null,0,0,"",""]
[null,null,null,null,null,null,null,"",null,0,0,"",""]
[null,null,null,null,null,null,null,"",null,0,0,"",""]
[null,null,null,null,null,null,null,"",null,0,0,"",""]
[null,null,null,null,null,null,null,"",null,0,0,"",""]
[null,null,null,null,null,null,null,"",null,0,0,"",""]
[null,null,null,null,null,null,null,"",null,0,0,"",""]
[null,null,null,null,null,null,null,"",null,0,0,"",""]
[null,null,null,null,null,null,null,"",null,0,0,"",""]
[null,null,null,null,null,null,null,"",null,0,0,"",""]
[null,null,null,null,null,null,null,"",null,0,0,"",""]
[null,null,null,null,null,null,null,"",null,0,0,"",""]
[null,null,null,null,null,null,null,"",null,0,0,"",""]
[null,null,null,null,null,null,null,"",null,0,0,"",""]
[null,null,null,null,null,null,null,"",null,0,0,"",""]
[null,null,null,null,null,null,null,"",null,0,0,"",""]
[null,null,null,null,null,null,null,"",null,0,0,"",""]
[null,null,null,null,null,null,null,"",null,0,0,"",""]
[null,null,null,null,null,null,null,"",null,0,0,"",""]
[null,null,null,null,null,null,null,"",null,0,0,"",""]
[null,null,null,null,null,null,null,"",null,0,0,"",""]
[null,null,null,null,null,null,null,"",null,0,0,"",""]
[null,null,null,null,null,null,null,"",null,0,0,"",{"$f":"IF(B165=\"\",\"\",MONTH(B165))","v":""}]
[null,null,null,null,null,null,null,"",null,0,0,"",""]
[null,null,null,null,null,null,null,"",null,0,0,{"$f":"IF(B167=\"\",\"\",YEAR(B167))","v":""},""]
[null,null,null,null,null,null,null,{"$f":"IF(B168<>\"\",\"Openstaand\",\"\")","v":""},null,0,0,"",""]
[null,null,null,null,null,null,null,"",null,0,0,"",""]
[null,null,null,null,null,null,null,"",null,0,0,"",""]
[null,null,null,null,null,null,null,"",null,0,0,"",""]
[null,null,null,null,null,null,null,"",null,0,0,"",""]
[null,null,null,null,null,null,null,"",null,0,0,"",""]
[null,null,null,null,null,null,null,"",null,0,0,"",""]
[null,null,null,null,null,null,null,"",null,0,0,"",""]
[null,null,null,null,null,null,null,"",null,0,0,"",""]
[null,null,null,null,null,null,null,"",null,0,0,"",""]
[null,null,null,null,null,null,null,"",null,0,0,"",""]
[null,null,null,null,null,null,null,"",null,0,0,"",""]
[null,null,null,null,null,null,null,"",null,0,0,"",""]
[null,null,null,null,null,null,null,"",null,0,0,"",""]
[null,null,null,null,null,null,null,"",null,0,0,"",""]
[null,null,null,null,null,null,null,"",null,0,0,"",""]
[null,null,null,null,null,null,null,"",null,0,0,"",""]
[null,null,null,null,null,null,null,"",null,0,0,"",""]
[null,null,null,null,null,null,null,"",null,0,0,"",""]
[null,null,null,null,null,null,null,"",null,0,0,"",""]
[null,null,null,null,null,null,null,"",null,0,0,"",""]
[null,null,null,null,null,null,null,"",null,0,0,"",""]
[null,null,null,null,null,null,null,"",null,0,0,"",""]
[null,null,null,null,null,null,null,"",null,0,0,"",""]
[null,null,null,null,null,null,null,"",null,0,0,"",""]
[null,null,null,null,null,null,null,"",null,0,0,"",""]
[null,null,null,null,null,null,null,"",null,0,0,"",""]
[null,null,null,null,null,null,null,"",null,{"$f":"+F195*G195","v":0},{"$f":"+F195+J195","v":0},{"$f":"IF(B195=\"\",\"\",YEAR(B195))","v":""},{"$f":"IF(B195=\"\",\"\",MONTH(B195))","v":""}]
[null,null,null,null,null,null,null,"",null,0,0,"",""]
[null,null,null,null,null,null,null,"",null,0,0,"",""]
[null,null,null,null,null,null,null,"",null,0,0,"",""]
[null,null,null,null,null,null,null,"",null,0,0,"",""]
[null,null,null,null,null,null,null,{"$f":"IF(B200<>\"\",\"Openstaand\",\"\")","v":""},null,0,0,"",""]
[null,null,null,null,null,null,null,"",null,0,0,"",""]
[null,null,null,null,null,null,null,"",null,0,0,"",""]
[null,null,null,null,null,null,null,"",null,0,0,"",""]
[null,null,null,null,null,null,null,"",null,0,0,"",""]
[null,null,null,null,null,null,null,"",null,0,0,"",""]
[null,null,null,null,null,null,null,"",null,0,0,"",""]
[null,null,null,null,null,null,null,"",null,0,0,"",""]
[null,null,null,null,null,null,null,"",null,0,0,"",""]
[null,null,null,null,null,null,null,"",null,0,0,"",""]
[null,null,null,null,null,null,null,"",null,0,0,"",""]
[null,null,null,null,null,null,null,"",null,0,0,"",""]
[null,null,null,null,null,null,null,"",null,0,0,"",""]
[null,null,null,null,null,null,null,"",null,0,0,"",""]
[null,null,null,null,null,null,null,"",null,0,0,"",""]
[null,null,null,null,null,null,null,"",null,0,0,"",""]
[null,null,null,null,null,null,null,"",null,0,0,"",""]
[null,null,null,null,null,null,null,"",null,0,0,"",""]
[null,null,null,null,null,null,null,"",null,0,0,"",""]
[null,null,null,null,null,null,null,"",null,0,0,"",""]
[null,null,null,null,null,null,null,"",null,0,0,"",""]
[null,null,null,null,null,null,null,"",null,0,0,"",""]
[null,null,null,null,null,null,null,"",null,0,0,"",""]
[null,null,null,null,null,null,null,"",null,0,0,"",""]
[null,null,null,null,null,null,null,"",null,0,0,"",""]
[null,null,null,null,null,null,null,"",null,0,0,"",""]
[null,null,null,null,null,null,null,"",null,0,0,"",""]
[null,null,null,null,null,null,null,"",null,0,0,"",""]
[null,null,null,null,null,null,null,"",null,0,0,"",""]
[null,null,null,null,null,null,null,"",null,0,0,"",""]
[null,null,null,null,null,null,null,"",null,0,0,"",""]
[null,null,null,null,null,null,null,"",null,0,0,"",""]
[null,null,null,null,null,null,null,"",null,0,0,"",""]
[null,null,null,null,null,null,null,"",null,0,0,"",""]
[null,null,null,null,null,null,null,"",null,0,0,"",""]
[null,null,null,null,null,null,null,"",null,0,0,"",""]
[null,null,null,null,null,null,null,null,null,0,0,"",""]
[null,null,null,null,null,null,null,null,null,0,0,"",""]
[null,null,null,null,null,null,null,null,null,0,0,"",""]
[null,null,null,null,null,null,null,null,null,0,0,"",""]
[null,null,null,null,null,null,null,null,null,0,0,"",""]
[null,null,null,null,null,null,null,null,null,0,0,"",""]

{"sheet":"Betalingen","index":1,"n_rows":5,"n_cols":20,"rows_kept":5,"cut":false,"hidden":false,"merged":[]}
[]
[null,"DATUM BETALING","REALATIE","OMSCHRIJVING","CATEGORIE","X","X","X","X","X","X","X","X","PINC","X","X","X","X","X","X"]
["2022-01-10","2022-03-01","HN",2021,4315,null,null,null,null,null,null,null,null,null,null,null,null,null,null,"JAN"]
["2022-01-25","2022-03-04","MP",288,4603,null,null,null,null,null,null,null,null,25]
["2022-01-27","2022-03-08","A",255,4810,null,null,null,null,null,null,null,null,165.47]

{"sheet":"Inkoop (2)","index":2,"n_rows":241,"n_cols":14,"rows_kept":241,"cut":false,"hidden":false,"merged":[]}
[null,null,null,null,null,{"$f":"SUBTOTAL(9,LIJST_IN_BEDRAG_EXCL)","v":181.10377358490564},null,null,null,{"$f":"SUBTOTAL(9,LIJST_IN_BTWBEDRAG)","v":9.3662264150943386},{"$f":"SUBTOTAL(9,LIJST_IN_BEDRAG_INCL)","v":190.47}]
[null,"DATUM BOEKING","RELATIE","OMSCHRIJVING","CATEGORIE","BEDRAG  EXCL. BTW","BTW-TARIEF","STATUS","DATUM BETAALD","BTW BEDRAG","BEDRAG INCL BTW","JAAR ","MAAND","kwartaal"]
[null,"2022-01-01","HN","Omschr. 14 niet gevonden","4315: TELEFOON & FAX",{"$f":"K3/(G3+1)","v":0},0,"Openstaand",null,{"$f":"+F3*G3","v":0},null,{"$f":"IF(B3=\"\",\"\",YEAR(B3))","v":2022},{"$f":"IF(B3=\"\",\"\",MONTH(B3))","v":1},{"$f":"ROUNDUP(MONTH(B3)/3,0)","v":1}]
[null,"2022-01-25","MP",288,null,25,0,"betaald","2022-03-04",0,25,2022,1,{"$f":"ROUNDUP(MONTH(B4)/3,0)","v":1}]
[null,"2022-03-01","HN",2021,null,0,0.21,"Openstaand","2022-03-01",{"$f":"K5/(1+G5)*G5","v":0},null,2022,3,1]
[null,"2022-03-04","A",255,null,156.10377358490564,0.06,"betaald","2022-03-08",{"$f":"K6/(1+G6)*G6","v":9.3662264150943386},165.47,2022,3,1]
[null,"2022-03-20","b","Omschr. 2589 niet gevonden",null,null,null,null,null,0,{"$f":"+F7+J7","v":0},{"$f":"IF(B7=\"\",\"\",YEAR(B7))","v":2022},3,1]
[null,null,null,null,null,null,null,{"$f":"IF(B8<>\"\",\"Openstaand\",\"\")","v":""},null,0,0,"",""]
[null,null,null,null,null,null,null,"",null,0,0,"",""]
[null,null,null,null,null,null,null,"",null,0,0,"",""]
[null,null,null,null,null,null,null,"",null,0,0,"",""]
[null,null,null,null,null,null,null,"",null,0,0,"",""]
[null,null,null,null,null,null,null,"",null,0,0,"",""]
[null,null,null,null,null,null,null,"",null,0,0,"",""]
[null,null,null,null,null,null,null,"",null,0,0,"",""]
[null,null,null,null,null,null,null,"",null,0,0,"",""]
[null,null,null,null,null,null,null,"",null,0,0,"",""]
[null,null,null,null,null,null,null,"",null,0,0,"",""]
[null,null,null,null,null,null,null,"",null,0,0,"",""]
[null,null,null,null,null,null,null,"",null,0,0,"",""]
[null,null,null,null,null,null,null,"",null,0,0,"",""]
[null,null,null,null,null,null,null,"",null,0,0,"",""]
[null,null,null,null,null,null,null,"",null,0,0,"",""]
[null,null,null,null,null,null,null,"",null,0,0,"",""]
[null,null,null,null,null,null,null,"",null,0,0,"",""]
[null,null,null,null,null,null,null,"",null,0,0,"",""]
[null,null,null,null,null,null,null,"",null,0,0,"",""]
[null,null,null,null,null,null,null,"",null,0,0,"",""]
[null,null,null,null,null,null,null,"",null,0,0,"",""]
[null,null,null,null,null,null,null,"",null,0,0,"",""]
[null,null,null,null,null,null,null,"",null,0,0,"",""]
[null,null,null,null,null,null,null,"",null,0,0,"",""]
[null,null,null,null,null,null,null,"",null,0,0,"",""]
[null,null,null,null,null,null,null,"",null,0,0,"",""]
[null,null,null,null,null,null,null,"",null,0,0,"",""]
[null,null,null,null,null,null,null,"",null,0,0,"",""]
[null,null,null,null,null,null,null,"",null,0,0,"",""]
[null,null,null,null,null,null,null,"",null,0,0,"",""]
[null,null,null,null,null,null,null,"",null,0,0,"",""]
[null,null,null,null,null,null,null,"",null,0,0,"",""]
[null,null,null,null,null,null,null,"",null,0,0,"",""]
[null,null,null,null,null,null,null,"",null,0,0,"",""]
[null,null,null,null,null,null,null,"",null,0,0,"",""]
[null,null,null,null,null,null,null,"",null,0,0,"",""]
[null,null,null,null,null,null,null,"",null,0,0,"",""]
[null,null,null,null,null,null,null,"",null,0,0,"",""]
[null,null,null,null,null,null,null,"",null,0,0,"",""]
[null,null,null,null,null,null,null,"",null,0,0,"",""]
[null,null,null,null,null,null,null,"",null,0,0,"",""]
[null,null,null,null,null,null,null,"",null,0,0,"",""]
[null,null,null,null,null,null,null,"",null,0,0,"",""]
[null,null,null,null,null,null,null,"",null,0,0,"",""]
[null,null,null,null,null,null,null,"",null,0,0,"",""]
[null,null,null,null,null,null,null,"",null,0,0,"",""]
[null,null,null,null,null,null,null,"",null,0,0,"",""]
[null,null,null,null,null,null,null,"",null,0,0,"",""]
[null,null,null,null,null,null,null,"",null,0,0,"",""]
[null,null,null,null,null,null,null,"",null,0,0,"",""]
[null,null,null,null,null,null,null,"",null,0,0,"",""]
[null,null,null,null,null,null,null,"",null,0,0,"",""]
[null,null,null,null,null,null,null,"",null,0,0,"",""]
[null,null,null,null,null,null,null,"",null,0,0,"",""]
[null,null,null,null,null,null,null,"",null,0,0,"",""]
[null,null,null,null,null,null,null,"",null,0,0,"",""]
[null,null,null,null,null,null,null,"",null,0,0,"",""]
[null,null,null,null,null,null,null,"",null,0,0,"",""]
[null,null,null,null,null,null,null,"",null,{"$f":"+F67*G67","v":0},{"$f":"+F67+J67","v":0},"",""]
[null,null,null,null,null,null,null,"",null,0,0,"",""]
[null,null,null,null,null,null,null,"",null,0,0,"",{"$f":"IF(B69=\"\",\"\",MONTH(B69))","v":""}]
[null,null,null,null,null,null,null,"",null,0,0,"",""]
[null,null,null,null,null,null,null,{"$f":"IF(B71<>\"\",\"Openstaand\",\"\")","v":""},null,0,0,{"$f":"IF(B71=\"\",\"\",YEAR(B71))","v":""},""]
[null,null,null,null,null,null,null,"",null,0,0,"",""]
[null,null,null,null,null,null,null,"",null,0,0,"",""]
[null,null,null,null,null,null,null,"",null,0,0,"",""]
[null,null,null,null,null,null,null,"",null,0,0,"",""]
[null,null,null,null,null,null,null,"",null,0,0,"",""]
[null,null,null,null,null,null,null,"",null,0,0,"",""]
[null,null,null,null,null,null,null,"",null,0,0,"",""]
[null,null,null,null,null,null,null,"",null,0,0,"",""]
[null,null,null,null,null,null,null,"",null,0,0,"",""]
[null,null,null,null,null,null,null,"",null,0,0,"",""]
[null,null,null,null,null,null,null,"",null,0,0,"",""]
[null,null,null,null,null,null,null,"",null,0,0,"",""]
[null,null,null,null,null,null,null,"",null,0,0,"",""]
[null,null,null,null,null,null,null,"",null,0,0,"",""]
[null,null,null,null,null,null,null,"",null,0,0,"",""]
[null,null,null,null,null,null,null,"",null,0,0,"",""]
[null,null,null,null,null,null,null,"",null,0,0,"",""]
[null,null,null,null,null,null,null,"",null,0,0,"",""]
[null,null,null,null,null,null,null,"",null,0,0,"",""]
[null,null,null,null,null,null,null,"",null,0,0,"",""]
[null,null,null,null,null,null,null,"",null,0,0,"",""]
[null,null,null,null,null,null,null,"",null,0,0,"",""]
[null,null,null,null,null,null,null,"",null,0,0,"",""]
[null,null,null,null,null,null,null,"",null,0,0,"",""]
[null,null,null,null,null,null,null,"",null,0,0,"",""]
[null,null,null,null,null,null,null,"",null,0,0,"",""]
[null,null,null,null,null,null,null,"",null,0,0,"",""]
[null,null,null,null,null,null,null,"",null,0,0,"",""]
[null,null,null,null,null,null,null,"",null,0,0,"",""]
[null,null,null,null,null,null,null,"",null,0,0,"",""]
[null,null,null,null,null,null,null,"",null,0,0,"",""]
[null,null,null,null,null,null,null,"",null,0,0,"",""]
[null,null,null,null,null,null,null,"",null,0,0,"",""]
[null,null,null,null,null,null,null,"",null,0,0,"",""]
[null,null,null,null,null,null,null,"",null,0,0,"",""]
[null,null,null,null,null,null,null,"",null,0,0,"",""]
[null,null,null,null,null,null,null,"",null,0,0,"",""]
[null,null,null,null,null,null,null,"",null,0,0,"",""]
[null,null,null,null,null,null,null,"",null,0,0,"",""]
[null,null,null,null,null,null,null,"",null,0,0,"",""]
[null,null,null,null,null,null,null,"",null,0,0,"",""]
[null,null,null,null,null,null,null,"",null,0,0,"",""]
[null,null,null,null,null,null,null,"",null,0,0,"",""]
[null,null,null,null,null,null,null,"",null,0,0,"",""]
[null,null,null,null,null,null,null,"",null,0,0,"",""]
[null,null,null,null,null,null,null,"",null,0,0,"",""]
[null,null,null,null,null,null,null,"",null,0,0,"",""]
[null,null,null,null,null,null,null,"",null,0,0,"",""]
[null,null,null,null,null,null,null,"",null,0,0,"",""]
[null,null,null,null,null,null,null,"",null,0,0,"",""]
[null,null,null,null,null,null,null,"",null,0,0,"",""]
[null,null,null,null,null,null,null,"",null,0,0,"",""]
[null,null,null,null,null,null,null,"",null,0,0,"",""]
[null,null,null,null,null,null,null,"",null,0,0,"",""]
[null,null,null,null,null,null,null,"",null,0,0,"",""]
[null,null,null,null,null,null,null,"",null,0,0,"",""]
[null,null,null,null,null,null,null,"",null,0,0,"",""]
[null,null,null,null,null,null,null,"",null,0,0,"",""]
[null,null,null,null,null,null,null,"",null,0,0,"",""]
[null,null,null,null,null,null,null,"",null,{"$f":"+F131*G131","v":0},{"$f":"+F131+J131","v":0},"",""]
[null,null,null,null,null,null,null,"",null,0,0,"",""]
[null,null,null,null,null,null,null,"",null,0,0,"",{"$f":"IF(B133=\"\",\"\",MONTH(B133))","v":""}]
[null,null,null,null,null,null,null,"",null,0,0,"",""]
[null,null,null,null,null,null,null,{"$f":"IF(B135<>\"\",\"Openstaand\",\"\")","v":""},null,0,0,{"$f":"IF(B135=\"\",\"\",YEAR(B135))","v":""},""]
[null,null,null,null,null,null,null,"",null,0,0,"",""]
[null,null,null,null,null,null,null,"",null,0,0,"",""]
[null,null,null,null,null,null,null,"",null,0,0,"",""]
[null,null,null,null,null,null,null,"",null,0,0,"",""]
[null,null,null,null,null,null,null,"",null,0,0,"",""]
[null,null,null,null,null,null,null,"",null,0,0,"",""]
[null,null,null,null,null,null,null,"",null,0,0,"",""]
[null,null,null,null,null,null,null,"",null,0,0,"",""]
[null,null,null,null,null,null,null,"",null,0,0,"",""]
[null,null,null,null,null,null,null,"",null,0,0,"",""]
[null,null,null,null,null,null,null,"",null,0,0,"",""]
[null,null,null,null,null,null,null,"",null,0,0,"",""]
[null,null,null,null,null,null,null,"",null,0,0,"",""]
[null,null,null,null,null,null,null,"",null,0,0,"",""]
[null,null,null,null,null,null,null,"",null,0,0,"",""]
[null,null,null,null,null,null,null,"",null,0,0,"",""]
[null,null,null,null,null,null,null,"",null,0,0,"",""]
[null,null,null,null,null,null,null,"",null,0,0,"",""]
[null,null,null,null,null,null,null,"",null,0,0,"",""]
[null,null,null,null,null,null,null,"",null,0,0,"",""]
[null,null,null,null,null,null,null,"",null,0,0,"",""]
[null,null,null,null,null,null,null,"",null,0,0,"",""]
[null,null,null,null,null,null,null,"",null,0,0,"",""]
[null,null,null,null,null,null,null,"",null,0,0,"",""]
[null,null,null,null,null,null,null,"",null,0,0,"",""]
[null,null,null,null,null,null,null,"",null,0,0,"",""]
[null,null,null,null,null,null,null,"",null,0,0,"",""]
[null,null,null,null,null,null,null,"",null,0,0,"",""]
[null,null,null,null,null,null,null,"",null,0,0,"",""]
[null,null,null,null,null,null,null,"",null,0,0,"",""]
[null,null,null,null,null,null,null,"",null,0,0,"",""]
[null,null,null,null,null,null,null,"",null,0,0,"",""]
[null,null,null,null,null,null,null,"",null,0,0,"",""]
[null,null,null,null,null,null,null,"",null,0,0,"",""]
[null,null,null,null,null,null,null,"",null,0,0,"",""]
[null,null,null,null,null,null,null,"",null,0,0,"",""]
[null,null,null,null,null,null,null,"",null,0,0,"",""]
[null,null,null,null,null,null,null,"",null,0,0,"",""]
[null,null,null,null,null,null,null,"",null,0,0,"",""]
[null,null,null,null,null,null,null,"",null,0,0,"",""]
[null,null,null,null,null,null,null,"",null,0,0,"",""]
[null,null,null,null,null,null,null,"",null,0,0,"",""]
[null,null,null,null,null,null,null,"",null,0,0,"",""]
[null,null,null,null,null,null,null,"",null,0,0,"",""]
[null,null,null,null,null,null,null,"",null,0,0,"",""]
[null,null,null,null,null,null,null,"",null,0,0,"",""]
[null,null,null,null,null,null,null,"",null,0,0,"",""]
[null,null,null,null,null,null,null,"",null,0,0,"",""]
[null,null,null,null,null,null,null,"",null,0,0,"",""]
[null,null,null,null,null,null,null,"",null,0,0,"",""]
[null,null,null,null,null,null,null,"",null,0,0,"",""]
[null,null,null,null,null,null,null,"",null,0,0,"",""]
[null,null,null,null,null,null,null,"",null,0,0,"",""]
[null,null,null,null,null,null,null,"",null,0,0,"",""]
[null,null,null,null,null,null,null,"",null,0,0,"",""]
[null,null,null,null,null,null,null,"",null,0,0,"",""]
[null,null,null,null,null,null,null,"",null,0,0,"",""]
[null,null,null,null,null,null,null,"",null,0,0,"",""]
[null,null,null,null,null,null,null,"",null,0,0,"",""]
[null,null,null,null,null,null,null,"",null,{"$f":"+F195*G195","v":0},{"$f":"+F195+J195","v":0},"",""]
[null,null,null,null,null,null,null,"",null,0,0,"",""]
[null,null,null,null,null,null,null,"",null,0,0,"",{"$f":"IF(B197=\"\",\"\",MONTH(B197))","v":""}]
[null,null,null,null,null,null,null,"",null,0,0,"",""]
[null,null,null,null,null,null,null,{"$f":"IF(B199<>\"\",\"Openstaand\",\"\")","v":""},null,0,0,{"$f":"IF(B199=\"\",\"\",YEAR(B199))","v":""},""]
[null,null,null,null,null,null,null,"",null,0,0,"",""]
[null,null,null,null,null,null,null,"",null,0,0,"",""]
[null,null,null,null,null,null,null,"",null,0,0,"",""]
[null,null,null,null,null,null,null,"",null,0,0,"",""]
[null,null,null,null,null,null,null,"",null,0,0,"",""]
[null,null,null,null,null,null,null,"",null,0,0,"",""]
[null,null,null,null,null,null,null,"",null,0,0,"",""]
[null,null,null,null,null,null,null,"",null,0,0,"",""]
[null,null,null,null,null,null,null,"",null,0,0,"",""]
[null,null,null,null,null,null,null,"",null,0,0,"",""]
[null,null,null,null,null,null,null,"",null,0,0,"",""]
[null,null,null,null,null,null,null,"",null,0,0,"",""]
[null,null,null,null,null,null,null,"",null,0,0,"",""]
[null,null,null,null,null,null,null,"",null,0,0,"",""]
[null,null,null,null,null,null,null,"",null,0,0,"",""]
[null,null,null,null,null,null,null,"",null,0,0,"",""]
[null,null,null,null,null,null,null,"",null,0,0,"",""]
[null,null,null,null,null,null,null,"",null,0,0,"",""]
[null,null,null,null,null,null,null,"",null,0,0,"",""]
[null,null,null,null,null,null,null,"",null,0,0,"",""]
[null,null,null,null,null,null,null,"",null,0,0,"",""]
[null,null,null,null,null,null,null,"",null,0,0,"",""]
[null,null,null,null,null,null,null,"",null,0,0,"",""]
[null,null,null,null,null,null,null,"",null,0,0,"",""]
[null,null,null,null,null,null,null,"",null,0,0,"",""]
[null,null,null,null,null,null,null,"",null,0,0,"",""]
[null,null,null,null,null,null,null,"",null,0,0,"",""]
[null,null,null,null,null,null,null,"",null,0,0,"",""]
[null,null,null,null,null,null,null,"",null,0,0,"",""]
[null,null,null,null,null,null,null,"",null,0,0,"",""]
[null,null,null,null,null,null,null,"",null,0,0,"",""]
[null,null,null,null,null,null,null,"",null,0,0,"",""]
[null,null,null,null,null,null,null,"",null,0,0,"",""]
[null,null,null,null,null,null,null,"",null,0,0,"",""]
[null,null,null,null,null,null,null,"",null,0,0,"",""]
[null,null,null,null,null,null,null,"",null,0,0,"",""]
[null,null,null,null,null,null,null,null,null,0,0,"",""]
[null,null,null,null,null,null,null,null,null,0,0,"",""]
[null,null,null,null,null,null,null,null,null,0,0,"",""]
[null,null,null,null,null,null,null,null,null,0,0,"",""]
[null,null,null,null,null,null,null,null,null,0,0,"",""]
[null,null,null,null,null,null,null,null,null,0,0,"",""]